Cogmind - Beta 13 @@@ ROGUE MODE // 2024.04.03 @ 22:02:50 Player: Hellcelot Result: Destroyed by G-47 Trooper with Particle Gun Performance ------------- Evolutions (2) 1000 Regions Visited (3) 600 Robots Destroyed (29) 145 Value Destroyed (706) 706 Prototype IDs (1) 20 Alien Tech Used (0) 0 Bonus (0) 0 TOTAL SCORE: 2471 Bonus ------- None Cogmind --------- Core Integrity 0/550 Matter 289/300 Energy 91/100 System Corruption 9% Temperature Cool (9) Movement Core (50) Location -8/Materials Parts ------- > --- POWER (3) -------- (None) > --- PROPULSION (2) --- (None) > --- UTILITY (4) ------ (None) > --- WEAPON (2) ------- (None) > --- INVENTORY (5) ---- Particle Gun Peak State ------------ > --- POWER ------------ Cooled Ion Engine Light Nuclear Core > --- PROPULSION ------- Advanced Treads Advanced Treads > --- UTILITY ---------- Cryofiber Web High-capacity Battery Core Shielding Propulsion Shielding > --- WEAPON ----------- Particle Cannon Heavy Mace > --- INVENTORY -------- (None) [Rating: 23] Favorites ----------- Power Light Ion Engine Engine Light Ion Engine Power Core Light Nuclear Core Propulsion Wheel Treads Advanced Treads Leg Aluminum Leg Wheel Wheel Flight Unit Flight Unit Utility Improved Terrain Scanner Device Improved Terrain Scanner Storage High-capacity Battery Processor Targeting Computer Protection Propulsion Shielding Weapon Assault Rifle Energy Gun Medium Laser Energy Cannon Particle Cannon Ballistic Gun Assault Rifle Launcher Grenade Launcher Special Weapon Mining Laser Impact Weapon Heavy Mace Build | -11 -10 -9 -8 ------- Run | Yrd Mat Mat Mat Slots Evolved 4 | . . 2 2 Power 2 | . . 1 1 Propulsion . | . . . . Utility 2 | . . 1 1 Weapon . | . . . . Parts Attached 53 | 11 21 4 17 Power 7 | 1 2 . 4 Engine 5 | 1 2 . 2 Core 2 | . . . 2 Reactor . | . . . . Propulsion 16 | 5 6 2 3 Treads 2 | . . . 2 Leg 4 | 3 . . 1 Wheel 6 | 2 4 . . Hover . | . . . . Flight 4 | . 2 2 . Utility 18 | 1 9 2 6 Device 7 | 1 2 1 3 Storage 5 | . 4 . 1 Processor 1 | . 1 . . Hackware . | . . . . Protection 5 | . 2 1 2 Artifact . | . . . . Weapon 12 | 4 4 . 4 Energy Gun 2 | . 1 . 1 Energy Cannon 1 | . . . 1 Ballistic Gun 5 | 3 1 . 1 Ballistic Cannon . | . . . . Launcher 1 | . 1 . . Special Weapon 2 | 1 1 . . Impact Weapon 1 | . . . 1 Slashing Weapon . | . . . . Piercing Weapon . | . . . . Special Melee Weapon . | . . . . Unidentified Prototypes 1 | . . . 1 Parts Lost 21 | . 1 2 18 Power 5 | . . 1 4 Propulsion 4 | . . . 4 Utility 6 | . . . 6 Weapon 6 | . 1 1 4 Highest Loss Streak 13 | . 1 2 13 To Critical Strikes . | . . . . Average Slot Usage (%) 79 | . 96 59 61 Engine 9 | . 13 6 5 Core 1 | . . . 3 Treads 4 | . . . 11 Wheel 14 | . 26 14 . Flight 1 | . . 4 2 Device 7 | . 5 15 7 Storage 7 | . 7 10 6 Processor 5 | . 9 . . Protection 7 | . 4 . 12 Energy Gun 2 | . 3 7 . Energy Cannon 1 | . . . 3 Ballistic Gun 4 | . 9 . . Launcher 6 | . 12 . . Impact Weapon 2 | . . . 6 Naked Turns 4 | . . . 4 Heaviest Build 28 | 7 13 11 28 Greatest Support 44 | 20 20 20 44 Greatest Overweight (x) 4 | . . 1 4 Average Overweight (x) . | . . . . Largest Inventory Capacity 5 | 5 5 5 5 Average Capacity 5 | 5 5 5 5 Most Carried 5 | 5 5 4 5 Average Carried 2 | 2 3 2 1 Final Capacity 5 | 5 5 5 5 Final Carried 4 | 4 4 4 1 Class Distribution -------------------- 100% | Mutant Dominant Class ---------------- Mutant | -10/Materials Mutant | -9/Materials Mutant | -8/Materials Resources | -11 -10 -9 -8 ----------- Run | Yrd Mat Mat Mat Matter Collected 931 | 350 133 12 436 Remotely 234 | . . 12 222 Salvage Created 726 | 93 263 . 370 Parts 46 | 6 23 . 17 Haulers Intercepted . | . . . . Recyclers Shooed . | . . . . Parts Field Recycled . | . . . . Retrieved Matter . | . . . . Parts Self-Destructed . | . . . . Prevented . | . . . . Kills | -11 -10 -9 -8 ------- Run | Yrd Mat Mat Mat Combat Hostiles Destroyed 19 | 1 11 . 7 Melee 1 | . . . 1 Guns 5 | 1 1 . 3 Cannons 1 | . . . 1 AOE 11 | . 10 . 1 Classes Destroyed 8 | 3 2 . 3 Worker 5 | 1 3 . 1 Builder 1 | . . . 1 Tunneler 1 | 1 . . . Watcher 3 | . 3 . . Swarmer 6 | . 6 . . Grunt 11 | 1 5 . 5 Duelist 1 | . . . 1 Sentry 1 | . . . 1 Best Kill Streak 7 | 1 7 . 3 Combat Bots Only 3 | 1 3 . 3 Max Kills in Single Turn 3 | 1 3 . 1 Gunslinging . | . . . . Exploded 3 | . 3 . 1 Melee 1 | . . . 1 Uniques/NPCs Destroyed . | . . . . Combat | -11 -10 -9 -8 -------- Run | Yrd Mat Mat Mat Hostile Shots Fired 219 | 9 32 26 152 Missed 61 | 4 13 10 34 Damage Taken 2721 | 60 286 202 2173 Core 661 | 12 31 63 555 Absorbed by Shields 18 | . . . 18 Redirected to Shielding 87 | . 3 . 84 Regen/Repaired (Parts) 12 | . 12 . . Core Remaining (%) 87 | 95 82 84 . Volleys Fired 88 | 16 30 6 36 Largest 2 | 2 2 1 1 Hottest 100 | 40 100 50 68 Shots Fired 104 | 24 39 6 35 Gun 67 | 24 18 6 19 Cannon 16 | . . . 16 Launcher 17 | . 17 . . Special 4 | . 4 . . Kinetic 47 | 24 12 . 11 Thermal 32 | . 10 6 16 Explosive 17 | . 17 . . Electromagnetic 8 | . . . 8 Robot Hit Streak 13 | 8 3 2 13 Robot Miss Streak 5 | 3 5 4 2 Penetration Max . | . . . . Secondary Targets . | . . . . Shots Hit Robots 66 | 19 13 2 32 Core Hits 47 | 5 24 . 18 Critical Kills 1 | . . . 1 Critical Parts Destroyed 3 | . . . 3 Critical Strikes 5 | . 1 . 4 Burn 1 | . 1 . . Destroy 1 | . . . 1 Smash 3 | . . . 3 Melee Attacks 18 | . . . 18 Impact 18 | . . . 18 Slashing . | . . . . Piercing . | . . . . Sneak Attacks 2 | . . . 2 Combat Hostiles . | . . . . Follow-up Attacks . | . . . . Damage Inflicted 2100 | 219 982 26 873 Guns 552 | 211 60 26 255 Cannons 266 | . . . 266 Explosions 976 | . 922 . 54 Melee 292 | . . . 292 Ramming 14 | 8 . . 6 Kinetic 359 | 211 10 . 138 Thermal 396 | . 50 26 320 Explosive 893 | . 893 . . Electromagnetic 146 | . 29 . 117 Impact 292 | . . . 292 Slashing . | . . . . Piercing . | . . . . Highest Corruption 9 | . . . 9 Average Corruption 9 | . . . 9 Corruption Purged . | . . . . Corruption Blocked . | . . . . Effects 6 | . . . 6 Message Errors 2 | . . . 2 Matter Fused 1 | . . . 1 Heat Flow Errors 1 | . . . 1 Energy Discharges 1 | . . . 1 Weapon Failures 1 | . . . 1 Overload Shots . | . . . . Overflow Damage 231 | . 7 . 224 Projectiles 12 | . . . 12 Explosions 44 | . 7 . 37 Melee 175 | . . . 175 Knockbacks 1 | . . . 1 Impact 1 | . . . 1 Kinetic . | . . . . Secondary . | . . . . Self-Inflicted Damage 132 | 3 84 . 45 Shots 5 | . 4 . 1 Rammed 5 | 4 . . 1 Targets Rammed 5 | 4 . . 1 Kicked . | . . . . Crushed . | . . . . Highest Temperature 307 | . 84 8 307 Average Temperature 75 | . 31 4 101 Received Heat Transfer 1332 | 30 81 81 1140 Effects 3 | . . . 3 Interference 3 | . . . 3 Siege Activations . | . . . . Robots Corrupted . | . . . . Combat Hostiles . | . . . . Parts Fried 3 | . . . 3 Impact Corruptions 6 | . . . 6 Robots Melted . | . . . . Combat Hostiles . | . . . . Parts Melted . | . . . . Heat Transferred 877 | . 222 74 581 Parts Sabotaged . | . . . . Parts Stolen . | . . . . Parts Stripped . | . . . . Power Chain Reactions 1 | . . . 1 Alert | -11 -10 -9 -8 ------- Run | Yrd Mat Mat Mat Peak Influence 401 | 25 401 141 226 Initial 126 | . . 126 50 Average 76 | 6 151 128 137 Maximum Alert Level 2 | . 2 . 1 Low Security (%) 84 | 100 54 100 81 Level 1 13 | . 38 . 18 Level 2 1 | . 6 . . Level 3 . | . . . . Level 4 . | . . . . Level 5 . | . . . . High Security . | . . . . Max Security . | . . . . Squads Dispatched 6 | . 3 1 2 Investigation 3 | . 2 . 1 Extermination . | . . . . Reinforcement 3 | . 1 1 1 Assault . | . . . . Garrison . | . . . . Intercept . | . . . . Searches Triggered . | . . . . Construction Impeded . | . . . . Haulers Reinforced . | . . . . Active Scanning Responses . | . . . . Cargo Convoy Interrupts . | . . . . Stealth | -11 -10 -9 -8 --------- Run | Yrd Mat Mat Mat Distress Signals 6 | . 3 2 1 Communications Jammed . | . . . . Distress Signals . | . . . . Times Spotted 42 | 1 19 7 15 Peak Tracking Total 6 | 1 5 6 5 Tactical Retreats 4 | . 1 . 3 Traps | -11 -10 -9 -8 ------- Run | Yrd Mat Mat Mat Traps Triggered 4 | . 3 . 1 Indirectly 2 | . 2 . . Trap Hack Attempts . | . . . . Triggered . | . . . . Disarmed . | . . . . Reprogrammed . | . . . . Reused . | . . . . Traps Extracted . | . . . . Installed . | . . . . Triggered . | . . . . Machines | -11 -10 -9 -8 ---------- Run | Yrd Mat Mat Mat Machines Disabled 6 | . 6 . . Max in Single Turn 2 | . 2 . . Machines Repaired . | . . . . Machines Dismantled . | . . . . Machines Sabotaged . | . . . . Overloaded Fab Kills . | . . . . Hacking | -11 -10 -9 -8 --------- Run | Yrd Mat Mat Mat Machines Accessed 3 | . 3 . . Terminals 2 | . 2 . . Fabricators . | . . . . Repair Stations 1 | . 1 . . Recycling Units . | . . . . Scanalyzers . | . . . . Garrison Access . | . . . . Total Hacks 9 | . 9 . . Successful 7 | . 7 . . Failed 2 | . 2 . . Catastrophic . | . . . . Database Lockouts . | . . . . Manual . | . . . . Terminals 5 | . 5 . . Fabricators . | . . . . Repair Stations 4 | . 4 . . Recycling Units . | . . . . Scanalyzers . | . . . . Garrison Access . | . . . . Terminal Hacks 3 | . 3 . . Record 1 | . 1 . . Reinforcement Status 1 | . 1 . . Zone Layout 1 | . 1 . . Fabricator Hacks . | . . . . Repair Station Hacks 4 | . 4 . . Scan Component 2 | . 2 . . Repair 2 | . 2 . . Recycling Unit Hacks . | . . . . Scanalyzer . | . . . . Garrison Access Hacks . | . . . . Unauthorized Hacks . | . . . . Terminals . | . . . . Fabricators . | . . . . Repair Stations . | . . . . Recycling Units . | . . . . Scanalyzers . | . . . . Garrison Access . | . . . . Data Cores Recovered . | . . . . Used . | . . . . Hacking Detections 1 | . 1 . . Full Trace Events 1 | . 1 . . Feedback Events . | . . . . Feedback Blocked . | . . . . Robot Schematics Acquired . | . . . . Robots Built . | . . . . Authchips . | . . . . Time . | . . . . Total Robot Build Rating . | . . . . Part Schematics Acquired . | . . . . Parts Built . | . . . . Authchips . | . . . . Time . | . . . . Total Part Build Rating . | . . . . Parts Repaired 2 | . 2 . . Time 52 | . 52 . . Parts Recycled . | . . . . Recycled Matter . | . . . . Retrieved Matter . | . . . . Retrieved Components . | . . . . Parts Scanalyzed . | . . . . Part Schematics Acquired . | . . . . Parts Damaged . | . . . . Bothacking | -11 -10 -9 -8 ------------ Run | Yrd Mat Mat Mat Used RIF Installer . | . . . . Robots Hacked . | . . . . Non-combat . | . . . . Combat . | . . . . Robot Hacks Applied . | . . . . Relay Couplers Released . | . . . . Fabnet Peak Effective % . | . . . . Robots Rewired . | . . . . Allies Hacked . | . . . . Hacks Repelled . | . . . . Allies | -11 -10 -9 -8 -------- Run | Yrd Mat Mat Mat Total Allies . | . . . . Largest Group . | . . . . Highest-Rated Group . | . . . . Highest-Rated Ally . | . . . . Total Orders . | . . . . Ally Attacks . | . . . . Total Damage . | . . . . Kills . | . . . . Allies Corrupted . | . . . . Allies Melted . | . . . . Intel | -11 -10 -9 -8 ------- Run | Yrd Mat Mat Mat Robot Analysis Total . | . . . . Derelict Logs Recovered . | . . . . Drone Launches . | . . . . Drone Recoveries . | . . . . Exploration | -11 -10 -9 -8 ------------- Run | Yrd Mat Mat Mat Turns Passed 2248 | 1100 582 125 441 Spaces Moved 1442 | 507 559 131 245 Core 35 | 21 . . 14 Treads 156 | . . . 156 Legs 323 | 323 . . . Wheels 782 | 163 559 60 . Hover . | . . . . Flight 146 | . . 71 75 Fastest Speed 37 | 50 80 37 37 Average Speed 92 | 104 80 60 116 Slowest Speed 250 | 120 80 117 250 Overloaded Moves . | . . . . Propulsion Burnouts . | . . . . Robots Hopped 14 | . . 13 1 Cave-ins Triggered 1 | . . . 1 Exploration Rate (%) 32 | 19 77 13 20 Regions Visited 3 Branch Regions . Pre-discovered Areas . | . . . . Known Exits Taken . | . . . . Unknown Exits Taken 3 | 1 1 1 . Scrap Searched . | . . . . Spaces Dug 12 | . 4 . 8 Terrain Destroyed 76 | . 63 . 13 Melee 8 | . . . 8 Projectile 4 | . 4 . . AOE 64 | . 59 . 5 Terrain Rammed . | . . . . Walls Destroyed . | . . . . Machines Disabled . | . . . . Actions | -11 -10 -9 -8 --------- Run | Yrd Mat Mat Mat Total 2195 | 1054 646 159 336 Wait 528 | 501 4 23 . Move 1412 | 506 558 106 242 Hop 12 | . . 11 1 Pick Up 50 | 13 18 4 15 Fast Attach 1 | . . . 1 Attach 27 | 6 5 3 13 Detach 2 | . 1 1 . Swap 25 | 5 16 1 3 Drop 26 | 3 14 4 5 Fire 88 | 16 30 6 36 Melee 18 | . . . 18 Ram 5 | 4 . . 1 Kick . | . . . . Crush . | . . . . Escape Stasis 1 | . . . 1 Rewire . | . . . . Trap . | . . . . Miscellaneous . | . . . . Route ------- -11/Scrapyard -10/Materials (discovered 5 exits: [*Mat x3] / [*Min x2]) -9/Materials -8/Materials History --------- Turn | Location | Event 2 | -11/Scrapyard | Met Revision 17 133 | -11/Scrapyard | Discovered new exit (range 8) 1101 | -11/Scrapyard | Entered Materials 1102 | -10/Materials | Build established: Mutant 1146 | -10/Materials | Discovered new exit (range 11) 1295 | -10/Materials | Discovered new exit (range 16) 1342 | -10/Materials | Discovered new exit (range 3) 1362 | -10/Materials | Repaired Lgt. Ion Engine 1388 | -10/Materials | Repaired Wheel? 1452 | -10/Materials | Discovered new exit (range 13) 1608 | -10/Materials | Discovered new exit (range 12) 1683 | -10/Materials | Entered another Materials area 1683 | -9/Materials | Evolved 2 slots: Power x1, Utility x1 1788 | -9/Materials | Discovered new exit (range 13) 1808 | -9/Materials | Entered another Materials area 1808 | -8/Materials | Evolved 2 slots: Power x1, Utility x1 2081 | -8/Materials | Crushed by falling debris 2112 | -8/Materials | Lost 3 parts (2p1u) 2209 | -8/Materials | Core integrity fell below 50% 2236 | -8/Materials | Core integrity fell below 20% 2249 | -8/Materials | Destroyed by G-47 Trooper with Particle Gun Last Messages --------------- Hvy. Mace destroyed. Deuterium Engine destroyed. Critical hit (Burn: +37). Hcp. Battery destroyed. Acquired Shield Generator. Acquired Minigun. System corrupted: Minigun jammed. G-47 Trooper destroyed. Shield Generator destroyed. Acquired Aluminum Leg. G-47 Trooper suffers critical hit (Destroy). Destroyed Aluminum Leg. G-47 Trooper destroyed. Acquired 45 matter. Aluminum Leg destroyed. Minigun destroyed. Slammed into G-47 Trooper. G-47 Trooper suffers critical hit (Burn). Acquired Particle Gun. [Achievement: First Step to Greatness] Map ----- +----------------------------------------------------+ | ?????????????????????????????????????????????? | | ?????????????????????????????????????????????? | | ?????????????????????????????????????????????? | | ?????????????????????????????????????????????? | | ?????????????????????????????????????????????? | | ?????????????????????????????????????????????? | | ?????????????????????????????????????????????? | | ?????????????????????????????????????????????? | | ?????????????????????????????????????????????? | | ?????????????????????????????????????????????? | | ?????????????????????????????????????????????? | | ??????????????????????#?#????????????????????? | | ?????????????????????? ????????????????????? | | ?????????????????????? ????????????????????? | | ?????????????????????? T ????????????????????? | | ?????????????????????? ????????????????????? | | ?????????????????????? ????????????????????? | | ??????????????????????# #????????????????????? | | ??????????????????????#%#????????????????????? | | ??????????????????????# #????????????????????? | | ??????????????????????# #?########???????????? | | ????????????????????### ### #???????????? | | ????????????????????# # #???????????? | | ????????????????????# a #g "" #???????????? | | ????????????????????# g/ """#???????????? | | ????????????????????# %%g@# S"#???#???????? | | ????????????????????# %% # #?? #???????? | | ????????????????????## ###########+#####???? | | ?????????????????????# #?# #???? | | ?????????????????????# #?#[=* #???? | | ?????????????????????# #?#[=* #???? | | ?????????????????????# #?#= * #???? | | ?????????????????????# #?# #???? | | ???????????????????### ### #???? | | ???????????????????# ####/############?? | | ??????????????????## = # # #"#?? | | ????????????# ###### ### | | ????????????+ T # # | | ????????????# # *! # | | ????????????### #### # = """ # | | ??????????????#????# #### ! #! =""" # | | ???????????????????####+####??# # """ # | | ??????????????????????????????# # # | | ??????????????????????????????# # """ # | | ??????????????????????????????# # """ # | | ??????????????????????????????# # """ # | | ??????????????????????????????# + # | | ??????????????????????????????# # """ !# | | ??????????????????????????????# # """ # | | ??????????????????????????????##### # """ # | +----------------------------------------------------+ Best States ------------- Heat Dissipation 31 Energy Generation 23 Energy Capacity 590 Matter Stores 300 Matter Capacity 500 Sight Range 16 Robot Scan Range 15 Terrain Scan Range 16 Terrain Scan Density 10 Base Temperature (-) 100 Armor Coverage 225 Core Shielding 20 Propulsion Shielding 33 Evasion (%) 62 Targeting Accuracy 5 Recoil Reduction 2 Item Schematics ----------------- None Robot Schematics ------------------ None Fabricated ------------ Nothing Alien Tech Used ----------------- None Achievements -------------- Crack Shot First Step to Greatness One Hack Too Far Part-time Excavator Part-time Mechanic Risk Taker Storm Trooper Uninvited Guest Unlikely Earthworm Use The Force Challenges ------------ None Game ------ Seed ActiveRainbowCore Manual? 0 Play Time 00:41:53 Cumulative 0.6 hours Start 2024.04.03 @ 21:17:05 End 2024.04.03 @ 22:02:50 Sessions 1 Manual Loads 0 Difficulty Rogue Special Mode None Game No. 1 Rogue 1 Adventurer 0 Explorer 0 Win Type - Total 0 Types 0/0/0/0/0/0/0/0/0 Lore% 0 Gallery% 3 Achievement% 3 Wizard Run 0 Options --------- Layout 1 ASCII 0 Keyboard 0 Movement Mouse Keybinds 0 Fullscreen 2 Font 24/Smallcaps Map View 50x35 Zoom Use 0% Tactical HUD 0 Map Filters NONE Filters NONE Steam 1 RUN: 7d920874-4610-471c-b044-17ff14e7abcf